Cogmind - Beta 12 @@@ ROGUE MODE // 2023.03.26 @ 04:45:07 Player: Rainynight Result: Destroyed by S-27 Virus with Autogun Performance ------------- Evolutions (4) 2000 Regions Visited (9) 1800 Robots Destroyed (2) 10 Value Destroyed (23) 23 Prototype IDs (0) 0 Alien Tech Used (0) 0 Bonus (-4481) -4481 TOTAL SCORE: -648 Bonus ------- Devolution -15000 Fragile Parts 1000 No Salvage 1000 Pure Core 2000 Scavenger 4000 Simple Hacker 1519 Trapped 1000 Cogmind --------- Core Integrity 0/800 Matter 187/300 Energy 99/100 System Corruption 0% Temperature Cool (0) Movement Core (50) Location -6/Factory Parts ------- > --- POWER (1) -------- (None) > --- PROPULSION (7) --- (None) > --- UTILITY (6) ------ (None) > --- WEAPON (2) ------- (None) > --- INVENTORY (0) ---- (None) Peak State ------------ None Favorites ----------- Power None Propulsion None Utility None Weapon None Build | -11 -10 -9 -8 -7 -7 -7 -6 -6 -6 ------- Run | Jun Mat Mat Mat Fac Was Fac Fac Was Fac Slots Evolved -4 | . . -1 -1 -1 . . -1 . . Power . | . . . . . . . . . . Propulsion -1 | . . . -1 . . . . . . Utility -2 | . . -1 . . . . -1 . . Weapon -1 | . . . . -1 . . . . . Parts Attached . | . . . . . . . . . . Power . | . . . . . . . . . . Engine . | . . . . . . . . . . Core . | . . . . . . . . . . Reactor . | . . . . . . . . . . Propulsion . | . . . . . . . . . . Treads . | . . . . . . . . . . Leg . | . . . . . . . . . . Wheel . | . . . . . . . . . . Hover . | . . . . . . . . . . Flight . | . . . . . . . . . . Utility . | . . . . . . . . . . Device . | . . . . . . . . . . Storage . | . . . . . . . . . . Processor . | . . . . . . . . . . Hackware . | . . . . . . . . . . Protection . | . . . . . . . . . . Artifact . | . . . . . . . . . . Weapon . | . . . . . . . . . . Energy Gun . | . . . . . . . . . . Energy Cannon . | . . . . . . . . . . Ballistic Gun . | . . . . . . . . . . Ballistic Cannon . | . . . . . . . . . . Launcher . | . . . . . . . . . . Special Weapon . | . . . . . . . . . . Impact Weapon . | . . . . . . . . . . Slashing Weapon . | . . . . . . . . . . Piercing Weapon . | . . . . . . . . . . Special Melee Weapon . | . . . . . . . . . . Unidentified Prototypes . | . . . . . . . . . . Parts Lost . | . . . . . . . . . . Power . | . . . . . . . . . . Propulsion . | . . . . . . . . . . Utility . | . . . . . . . . . . Weapon . | . . . . . . . . . . Highest Loss Streak . | . . . . . . . . . . To Critical Strikes . | . . . . . . . . . . Average Slot Usage (%) . | . . . . . . . . . . Naked Turns 615 | . 66 52 73 105 36 67 73 48 95 Heaviest Build . | . . . . . . . . . . Greatest Support 3 | 3 3 3 3 3 3 3 3 3 3 Greatest Overweight (x) . | . . . . . . . . . . Average Overweight (x) . | . . . . . . . . . . Largest Inventory Capacity . | . . . . . . . . . . Average Capacity . | . . . . . . . . . . Most Carried . | . . . . . . . . . . Average Carried . | . . . . . . . . . . Final Capacity . | . . . . . . . . . . Final Carried . | . . . . . . . . . . Class Distribution -------------------- 100% | Mutant Dominant Class ---------------- Mutant | -10/Materials Mutant | -9/Materials Mutant | -8/Materials Mutant | -7/Factory Mutant | -7/Waste Mutant | -7/Factory Mutant | -6/Factory Mutant | -6/Waste Mutant | -6/Factory Resources | -11 -10 -9 -8 -7 -7 -7 -6 -6 -6 ----------- Run | Jun Mat Mat Mat Fac Was Fac Fac Was Fac Matter Collected 33 | . 30 . . . . . 3 . . Remotely . | . . . . . . . . . . Salvage Created 55 | . 30 25 . . . . . . . Parts . | . . . . . . . . . . Haulers Intercepted . | . . . . . . . . . . Recyclers Shooed . | . . . . . . . . . . Parts Field Recycled . | . . . . . . . . . . Retrieved Matter . | . . . . . . . . . . Parts Self-Destructed . | . . . . . . . . . . Prevented . | . . . . . . . . . . Kills | -11 -10 -9 -8 -7 -7 -7 -6 -6 -6 ------- Run | Jun Mat Mat Mat Fac Was Fac Fac Was Fac Combat Hostiles Destroyed . | . . . . . . . . . . Classes Destroyed 2 | . 1 1 . . . . . . . Tunneler 1 | . 1 . . . . . . . . Watcher 1 | . . 1 . . . . . . . Best Kill Streak 1 | . 1 1 . . . . . . . Combat Bots Only . | . . . . . . . . . . Max Kills in Single Turn 1 | . 1 1 . . . . . . . Gunslinging . | . . . . . . . . . . Exploded . | . . . . . . . . . . Melee . | . . . . . . . . . . Uniques/NPCs Destroyed . | . . . . . . . . . . Combat | -11 -10 -9 -8 -7 -7 -7 -6 -6 -6 -------- Run | Jun Mat Mat Mat Fac Was Fac Fac Was Fac Damage Taken 1851 | . 117 201 695 . 32 . 286 . 520 Core 1851 | . 117 201 695 . 32 . 286 . 520 Absorbed by Shields . | . . . . . . . . . . Core Remaining (%) 73 | 100 85 74 13 . . 96 . . . Volleys Fired . | . . . . . . . . . . Largest . | . . . . . . . . . . Hottest . | . . . . . . . . . . Shots Fired . | . . . . . . . . . . Gun . | . . . . . . . . . . Cannon . | . . . . . . . . . . Launcher . | . . . . . . . . . . Special . | . . . . . . . . . . Kinetic . | . . . . . . . . . . Thermal . | . . . . . . . . . . Explosive . | . . . . . . . . . . Electromagnetic . | . . . . . . . . . . Robot Hit Streak . | . . . . . . . . . . Robot Miss Streak . | . . . . . . . . . . Penetration Max . | . . . . . . . . . . Secondary Targets . | . . . . . . . . . . Shots Hit Robots . | . . . . . . . . . . Core Hits 3 | . 1 2 . . . . . . . Critical Kills . | . . . . . . . . . . Critical Parts Destroyed . | . . . . . . . . . . Critical Strikes . | . . . . . . . . . . Melee Attacks . | . . . . . . . . . . Impact . | . . . . . . . . . . Slashing . | . . . . . . . . . . Piercing . | . . . . . . . . . . Sneak Attacks . | . . . . . . . . . . Combat Hostiles . | . . . . . . . . . . Follow-up Attacks . | . . . . . . . . . . Damage Inflicted 139 | . 42 46 39 . . . . . 12 Guns . | . . . . . . . . . . Cannons . | . . . . . . . . . . Explosions . | . . . . . . . . . . Melee . | . . . . . . . . . . Ramming 139 | . 42 46 39 . . . . . 12 Kinetic . | . . . . . . . . . . Thermal . | . . . . . . . . . . Explosive . | . . . . . . . . . . Electromagnetic . | . . . . . . . . . . Impact . | . . . . . . . . . . Slashing . | . . . . . . . . . . Piercing . | . . . . . . . . . . Highest Corruption 10 | . 1 . 2 2 10 10 . . . Average Corruption 5 | . 1 . 2 2 6 10 . . . Corruption Purged . | . . . . . . . . . . Corruption Blocked . | . . . . . . . . . . Effects 5 | . . . 1 . 1 3 . . . Matter Fused 2 | . . . 1 . . 1 . . . Energy Discharges 1 | . . . . . . 1 . . . Data Loss (minor) 1 | . . . . . . 1 . . . Data Loss (major) 1 | . . . . . 1 . . . . Overload Shots . | . . . . . . . . . . Overflow Damage . | . . . . . . . . . . Projectiles . | . . . . . . . . . . Explosions . | . . . . . . . . . . Melee . | . . . . . . . . . . Knockbacks . | . . . . . . . . . . Impact . | . . . . . . . . . . Kinetic . | . . . . . . . . . . Secondary . | . . . . . . . . . . Self-Inflicted Damage 66 | . 20 22 18 . . . . . 6 Shots . | . . . . . . . . . . Rammed 21 | . 4 7 9 . . . . . 1 Targets Rammed 21 | . 4 7 9 . . . . . 1 Kicked . | . . . . . . . . . . Crushed . | . . . . . . . . . . Highest Temperature 37 | . 7 . 37 . . . . . 35 Average Temperature 19 | . 4 . 22 . . . . . 25 Received Heat Transfer 460 | . 72 42 252 . . . 21 . 73 Siege Activations . | . . . . . . . . . . Robots Corrupted . | . . . . . . . . . . Combat Hostiles . | . . . . . . . . . . Parts Fried . | . . . . . . . . . . Impact Corruptions . | . . . . . . . . . . Robots Melted . | . . . . . . . . . . Combat Hostiles . | . . . . . . . . . . Parts Melted . | . . . . . . . . . . Heat Transferred . | . . . . . . . . . . Parts Sabotaged . | . . . . . . . . . . Parts Stolen . | . . . . . . . . . . Parts Stripped . | . . . . . . . . . . Power Chain Reactions . | . . . . . . . . . . Missiles Intercepted . | . . . . . . . . . . Alert | -11 -10 -9 -8 -7 -7 -7 -6 -6 -6 ------- Run | Jun Mat Mat Mat Fac Was Fac Fac Was Fac Peak Influence 119 | . 35 111 76 49 47 18 91 20 119 Initial 46 | . . 14 46 34 17 18 8 5 14 Average 33 | . 16 53 60 36 22 18 31 13 40 Maximum Alert Level . | . . . . . . . . . . Low Security (%) 100 | 100 100 100 100 100 100 100 100 100 100 Level 1 . | . . . . . . . . . . Level 2 . | . . . . . . . . . . Level 3 . | . . . . . . . . . . Level 4 . | . . . . . . . . . . Level 5 . | . . . . . . . . . . High Security . | . . . . . . . . . . Max Security . | . . . . . . . . . . Squads Dispatched 12 | . 2 3 3 . . . 4 . . Investigation 8 | . 1 1 2 . . . 4 . . Extermination . | . . . . . . . . . . Reinforcement 4 | . 1 2 1 . . . . . . Assault . | . . . . . . . . . . Garrison . | . . . . . . . . . . Intercept . | . . . . . . . . . . Searches Triggered . | . . . . . . . . . . Construction Impeded . | . . . . . . . . . . Haulers Reinforced . | . . . . . . . . . . Active Scanning Responses . | . . . . . . . . . . Cargo Convoy Interrupts . | . . . . . . . . . . Stealth | -11 -10 -9 -8 -7 -7 -7 -6 -6 -6 --------- Run | Jun Mat Mat Mat Fac Was Fac Fac Was Fac Distress Signals 4 | . 2 1 . . . . . . 1 Communications Jammed . | . . . . . . . . . . Distress Signals . | . . . . . . . . . . Times Spotted 84 | . 11 15 22 1 6 . 10 5 14 Peak Tracking Total 22 | . 11 10 22 1 6 . 11 5 10 Tactical Retreats 6 | . . 2 1 . . . 1 . 2 Traps | -11 -10 -9 -8 -7 -7 -7 -6 -6 -6 ------- Run | Jun Mat Mat Mat Fac Was Fac Fac Was Fac Traps Triggered 16 | . 2 1 2 6 . . 4 . 1 Indirectly . | . . . . . . . . . . Trap Hack Attempts . | . . . . . . . . . . Triggered . | . . . . . . . . . . Disarmed . | . . . . . . . . . . Reprogrammed . | . . . . . . . . . . Reused . | . . . . . . . . . . Traps Extracted . | . . . . . . . . . . Installed . | . . . . . . . . . . Triggered . | . . . . . . . . . . Machines | -11 -10 -9 -8 -7 -7 -7 -6 -6 -6 ---------- Run | Jun Mat Mat Mat Fac Was Fac Fac Was Fac Machines Disabled . | . . . . . . . . . . Max in Single Turn . | . . . . . . . . . . Machines Repaired . | . . . . . . . . . . Machines Sabotaged . | . . . . . . . . . . Overloaded Fab Kills . | . . . . . . . . . . Hacking | -11 -10 -9 -8 -7 -7 -7 -6 -6 -6 --------- Run | Jun Mat Mat Mat Fac Was Fac Fac Was Fac Machines Accessed 6 | . . . . . . . 4 . 2 Terminals 6 | . . . . . . . 4 . 2 Fabricators . | . . . . . . . . . . Repair Stations . | . . . . . . . . . . Recycling Units . | . . . . . . . . . . Scanalyzers . | . . . . . . . . . . Garrison Access . | . . . . . . . . . . Total Hacks 15 | . . . . . . . 12 . 3 Successful 4 | . . . . . . . 3 . 1 Failed 11 | . . . . . . . 9 . 2 Catastrophic 1 | . . . . . . . 1 . . Database Lockouts . | . . . . . . . . . . Manual . | . . . . . . . . . . Terminals 15 | . . . . . . . 12 . 3 Fabricators . | . . . . . . . . . . Repair Stations . | . . . . . . . . . . Recycling Units . | . . . . . . . . . . Scanalyzers . | . . . . . . . . . . Garrison Access . | . . . . . . . . . . Terminal Hacks 4 | . . . . . . . 3 . 1 Open DSF 1 | . . . . . . . . . 1 Terminal Index 1 | . . . . . . . 1 . . Unreport Threat 1 | . . . . . . . 1 . . Zone Layout 1 | . . . . . . . 1 . . Fabricator Hacks . | . . . . . . . . . . Repair Station Hacks . | . . . . . . . . . . Recycling Unit Hacks . | . . . . . . . . . . Scanalyzer . | . . . . . . . . . . Garrison Access Hacks . | . . . . . . . . . . Unauthorized Hacks . | . . . . . . . . . . Terminals . | . . . . . . . . . . Fabricators . | . . . . . . . . . . Repair Stations . | . . . . . . . . . . Recycling Units . | . . . . . . . . . . Scanalyzers . | . . . . . . . . . . Garrison Access . | . . . . . . . . . . Data Cores Recovered . | . . . . . . . . . . Used . | . . . . . . . . . . Hacking Detections 5 | . . . . . . . 4 . 1 Full Trace Events 4 | . . . . . . . 4 . . Feedback Events . | . . . . . . . . . . Feedback Blocked . | . . . . . . . . . . Robot Schematics Acquired . | . . . . . . . . . . Robots Built . | . . . . . . . . . . Authchips . | . . . . . . . . . . Time . | . . . . . . . . . . Total Robot Build Rating . | . . . . . . . . . . Part Schematics Acquired . | . . . . . . . . . . Parts Built . | . . . . . . . . . . Authchips . | . . . . . . . . . . Time . | . . . . . . . . . . Total Part Build Rating . | . . . . . . . . . . Parts Repaired . | . . . . . . . . . . Time . | . . . . . . . . . . Parts Recycled . | . . . . . . . . . . Recycled Matter . | . . . . . . . . . . Retrieved Matter . | . . . . . . . . . . Retrieved Components . | . . . . . . . . . . Parts Scanalyzed . | . . . . . . . . . . Part Schematics Acquired . | . . . . . . . . . . Parts Damaged . | . . . . . . . . . . Bothacking | -11 -10 -9 -8 -7 -7 -7 -6 -6 -6 ------------ Run | Jun Mat Mat Mat Fac Was Fac Fac Was Fac Used RIF Installer . | . . . . . . . . . . Robots Hacked . | . . . . . . . . . . Non-combat . | . . . . . . . . . . Combat . | . . . . . . . . . . Robot Hacks Applied . | . . . . . . . . . . Relay Couplers Released . | . . . . . . . . . . Fabnet Peak Effective % . | . . . . . . . . . . Robots Rewired . | . . . . . . . . . . Allies Hacked . | . . . . . . . . . . Hacks Repelled . | . . . . . . . . . . Allies | -11 -10 -9 -8 -7 -7 -7 -6 -6 -6 -------- Run | Jun Mat Mat Mat Fac Was Fac Fac Was Fac Total Allies 1 | . . . . . 1 . . . . Largest Group 1 | . . . . . 1 . . . . Highest-Rated Group 31 | . . . . . 31 . . . . Highest-Rated Ally 31 | . . . . . 31 . . . . Total Orders . | . . . . . . . . . . Ally Attacks 5 | . . . . . 5 . . . . Total Damage 66 | . . . . . 66 . . . . Kills . | . . . . . . . . . . Allies Corrupted . | . . . . . . . . . . Allies Melted . | . . . . . . . . . . Intel | -11 -10 -9 -8 -7 -7 -7 -6 -6 -6 ------- Run | Jun Mat Mat Mat Fac Was Fac Fac Was Fac Robot Analysis Total . | . . . . . . . . . . Derelict Logs Recovered . | . . . . . . . . . . Drone Launches . | . . . . . . . . . . Drone Recoveries . | . . . . . . . . . . Exploration | -11 -10 -9 -8 -7 -7 -7 -6 -6 -6 ------------- Run | Jun Mat Mat Mat Fac Was Fac Fac Was Fac Turns Passed 624 | 9 66 52 73 105 36 67 73 48 95 Spaces Moved 1148 | 18 123 89 128 210 72 80 145 96 187 Core 1148 | 18 123 89 128 210 72 80 145 96 187 Treads . | . . . . . . . . . . Legs . | . . . . . . . . . . Wheels . | . . . . . . . . . . Hover . | . . . . . . . . . . Flight . | . . . . . . . . . . Fastest Speed 50 | 50 50 50 50 50 50 50 50 50 50 Average Speed 50 | 50 50 50 50 50 50 50 50 50 50 Slowest Speed 50 | 50 50 50 50 50 50 50 50 50 50 Overloaded Moves . | . . . . . . . . . . Propulsion Burnouts . | . . . . . . . . . . Robots Hopped . | . . . . . . . . . . Cave-ins Triggered . | . . . . . . . . . . Exploration Rate (%) 24 | 3 30 17 18 8 73 2 7 73 10 Regions Visited 9 Branch Regions . Pre-discovered Areas . | . . . . . . . . . . Known Exits Taken . | . . . . . . . . . . Unknown Exits Taken 5 | 1 1 1 1 . . 1 . . . Scrap Searched . | . . . . . . . . . . Spaces Dug . | . . . . . . . . . . Terrain Destroyed . | . . . . . . . . . . Melee . | . . . . . . . . . . Projectile . | . . . . . . . . . . AOE . | . . . . . . . . . . Terrain Rammed . | . . . . . . . . . . Walls Destroyed . | . . . . . . . . . . Machines Disabled . | . . . . . . . . . . Actions | -11 -10 -9 -8 -7 -7 -7 -6 -6 -6 --------- Run | Jun Mat Mat Mat Fac Was Fac Fac Was Fac Total 1189 | 17 126 95 136 210 71 106 145 95 188 Wait 27 | . . . . . . 27 . . . Move 1141 | 17 122 88 127 210 71 79 145 95 187 Hop . | . . . . . . . . . . Pick Up . | . . . . . . . . . . Fast Attach . | . . . . . . . . . . Attach . | . . . . . . . . . . Detach . | . . . . . . . . . . Swap . | . . . . . . . . . . Drop . | . . . . . . . . . . Fire . | . . . . . . . . . . Melee . | . . . . . . . . . . Ram 21 | . 4 7 9 . . . . . 1 Kick . | . . . . . . . . . . Crush . | . . . . . . . . . . Escape Stasis . | . . . . . . . . . . Rewire . | . . . . . . . . . . Trap . | . . . . . . . . . . Miscellaneous . | . . . . . . . . . . Route ------- -11/Junkyard -10/Materials -9/Materials -8/Materials -7/Factory -7/Waste -7/Factory -6/Factory -6/Waste -6/Factory History --------- Turn | Location | Event 3 | -11/Junkyard | Discovered new exit (range 15) 10 | -11/Junkyard | Entered Materials 72 | -10/Materials | Discovered new exit (range 9) 76 | -10/Materials | Entered another Materials area 76 | -9/Materials | Devolved, losing 1 slot: Utility x-1 121 | -9/Materials | Discovered new exit (range 10) 128 | -9/Materials | Entered another Materials area 128 | -8/Materials | Devolved, losing 1 slot: Propulsion x-1 189 | -8/Materials | Core integrity fell below 50% 196 | -8/Materials | Discovered new exit (range 10) 199 | -8/Materials | Core integrity fell below 20% 201 | -8/Materials | Entered Factory 201 | -7/Factory | Devolved, losing 1 slot: Weapon x-1 305 | -7/Factory | Build established: Mutant 306 | -7/Factory | Sucked down chute 306 | -7/Factory | Entered Waste 307 | -7/Waste | Met a frightened Derelict 317 | -7/Waste | Spotted C-40 Crusher 318 | -7/Waste | Spotted C-40 Crusher 321 | -7/Waste | EMP discharged 321 | -7/Waste | System corruption reached 10% 322 | -7/Waste | Spotted C-40 Crusher 322 | -7/Waste | Spotted C-40 Crusher 328 | -7/Waste | Spotted C-40 Crusher 332 | -7/Waste | Spotted C-40 Crusher 334 | -7/Waste | Discovered new exit (range 16) 342 | -7/Waste | Entered Factory 404 | -7/Factory | Discovered new exit (range 7) 409 | -7/Factory | Entered another Factory area 409 | -6/Factory | Devolved, losing 1 slot: Utility x-1 454 | -6/Factory | Spotted B-75 Beast 482 | -6/Factory | Sucked down chute 482 | -6/Factory | Entered Waste 494 | -6/Waste | Spotted C-40 Crusher 502 | -6/Waste | Spotted C-40 Crusher 507 | -6/Waste | Spotted C-40 Crusher 513 | -6/Waste | Spotted C-40 Crusher 514 | -6/Waste | Spotted C-40 Crusher 524 | -6/Waste | Discovered new exit (range 11) 530 | -6/Waste | Entered Factory 573 | -6/Factory | Core integrity fell below 50% 611 | -6/Factory | Core integrity fell below 20% 625 | -6/Factory | Destroyed by S-27 Virus with Autogun Last Messages --------------- 00497_ Hvy. Mass Driver crushed. 00524_ EXIT=FOUND LOCATION=UNKNOWN GOAL=ESCAPE 00546_ K-01 Serf collects debris. 00557_ Connecting with Terminal... 00557_ Current location identified: Factory 00566_ ALERT: All DSF locations entering lockdown mode. 00574_ S-27 Virus destroyed. 00578_ Triggered Blade Trap. 00578_ Massive razor-sharp blades shoot up from within the floor. 00581_ Connecting with DSF Access... 00582_ K-01 Serf destroyed. 00585_ K-01 Serf collects debris. 00603_ K-01 Serf cleans the Garrison Access. 00605_ K-01 Serf cleans the Construction Platform. 00608_ W-25 Informer sends out distress signal. 00609_ K-01 Serf cleans the Construction Platform. 00621_ Slammed into S-27 Virus. 00621_ Critical hit (Burn: +50). Map ----- +----------------------------------------------------+ | ?????????????????????????????????????????????????? | | ?????????????????????????????????????????????????? | | ?????????????????????????????????????????????????? | | ?????????????????????????????????????????????????? | | ?????????????????????????????????????????????????? | | ?????????????????????????????????????????????????? | | ?????????????????????????????????????????????????? | | ?????????????????????????????????????????????????? | | ?????????????????????????????????????????????????? | | ?????????????????????????????????????????????????? | | ?????????????????????????????????????????????????? | | ?????????????????????????????????????????????????? | | ?????????????????????????????????????????????????? | | ?????????????????????????????????????????????????? | | ???????????????????????????#?????????????????????? | | ??????????????????????????" ?????????????????????? | | ?????????????????????????"" #????????????????????? | | ???????????????????????? "" #????????????????????? | | ??????????????????? ???? #????????????????????? | | ???????????????????? !? #????????????????????? | | ???????????????????? #????????????????????? | | ????????????????????"" """" #????????????????????? | | ???????????????????""" """" #????????????????????? | | ??????????????????"""" """" #????????????????????? | | ???????????????# """" """" #????????????????????? | | ???????????????# @ #####????????????????? | | ???????????????# /ss #????????????????? | | ???????????????#######+######## #????????????????? | | ?????????????????????????######+#######??????????? | | ?????????????????????????# #??????????? | | ?????????????????????????# #??????????? | | ??????????????????#??? # #??????????? | | ?????????????????? # """ """ #??????????? | | ???????????????????# # """ """ #??????????? | | ???????????????????# # """ """ #??????????? | | ???????????????????# # "" "" #??????????? | | ???????????????????# # "" "" #??????????? | | ???????????????????+ # #??????????? | | ???????????????????# / #??????????? | | ???????????????????# # #??????????? | | ???????????????????# # % #??????????? | | ???????????????????# ####+#########??????????? | | ???????????????????# #????????????????? | | ???????????????????# #????????????????? | | ???????????????????+ #????????????????? | | ???????????????????# #????????????????? | | ???????????????????# #????????????????? | | ???????????????????# ########????????????????? | | ???????????????????# ########????????????????? | | ???????????????????# #! """"""" ????????????? | +----------------------------------------------------+ Best States ------------- Heat Dissipation 20 Energy Generation 5 Energy Capacity 100 Matter Stores 190 Matter Capacity 300 Sight Range 16 Terrain Scan Density 10 Evasion (%) 50 Item Schematics ----------------- None Robot Schematics ------------------ None Fabricated ------------ Nothing Alien Tech Used ----------------- None Achievements -------------- None Challenges ------------ Devolution Fragile Parts No Salvage Pure Core Scavenger Simple Hacker Trapped Game ------ Seed NovaGlidesysProtection Manual? 0 Play Time 00:07:10 Cumulative 281.0 hours Start 2023.03.26 @ 04:39:01 End 2023.03.26 @ 04:45:07 Sessions 1 Manual Loads 0 Difficulty Rogue Special Mode None Game No. 270 Rogue 253 Adventurer 1 Explorer 16 Win Type - Total 16 Types 13/1/0/2/0/0/0/0/0 Lore% 74 Gallery% 80 Achievement% 72 Wizard Run 0 Options --------- ASCII 1 Keyboard 1 Movement Numpad Keybinds 1 Fullscreen 1 Font 18/X11 Map View 76x50 Tactical HUD 1 Map Filters NONE Filters NONE Steam 1 RUN: ad74900f-fa3b-4b79-8008-37a4a24c1942